fUSD/lending_fUSD_20240214
["ID","MTS","AMOUNT","RATE_DAILY","PERIOD"]
[313984947,1707910245295,-849.7003,0.000348,2]
[313984948,1707910245307,-2888.87671879,0.000349,2]
[313984949,1707910245316,-288.58,0.00034965,2]
[313984950,1707910245326,-100000.0,0.00035,15]
[313984951,1707910245336,-155.0,0.00035,2]
[313984952,1707910245347,-844.18627973,0.00035,2]
[313984953,1707910245356,-451.26141035,0.00035,4]
[313984954,1707910245365,-326.64882935,0.00035,7]
[313984955,1707910245374,-436.01862455,0.00035,4]
[313984956,1707910245383,-47779.60812853,0.00035,4]
[313984957,1707910245392,-1000.0,0.00035,20]
[313984958,1707910245401,-3185.54865281,0.0003509,7]
[313984960,1707910245410,-207.0,0.00035093,2]
[313984962,1707910245419,-12365.71382664,0.00035146,2]
[313984964,1707910245428,-288.58,0.00035149,2]
[313984965,1707910245438,-288.58,0.00035333,2]
[313984966,1707910245447,-1000.0,0.00035354,7]
[313984967,1707910245456,-1000.0,0.00035372,7]
[313984968,1707910245466,-167.02,0.00035411,2]
[313984969,1707910245475,-150.0,0.00035472,2]
[313984970,1707910245485,-288.58,0.00035517,2]
[313984971,1707910245494,-750.51168819,0.00035616,7]
[313984972,1707910245502,-666.0,0.00035616,2]
[313984973,1707910245512,-288.58,0.00035701,2]
[313984974,1707910245521,-500.0,0.00035798,2]
[313984975,1707910245530,-500.0,0.00035798,2]
[313984976,1707910245539,-344.64,0.00035798,2]
[313984977,1707910245549,-154.69,0.000358,3]
[313984978,1707910245560,-154.69,0.000358,3]
[313984979,1707910245569,-288.58,0.00035885,2]
[313984980,1707910245578,-1000.0,0.0003589,120]
[313984981,1707910245587,-3185.54865281,0.00035892,8]
[313984982,1707910245596,-5000.0,0.0003598,2]
[313984983,1707910245605,-100000.0,0.00036,16]
[313984984,1707910245615,-1464.0,0.00036,30]
[313984985,1707910245624,-568.56,0.00036056,2]
[313984986,1707910245633,-213.0,0.00036056,7]
[313984987,1707910245642,-288.58,0.00036069,2]
[313984988,1707910245651,-368.66219801,0.000362,2]
[313984989,1707910245660,-159.0,0.00036247,2]
[313984990,1707910245669,-288.58,0.00036253,2]
[313984991,1707910245678,-150.0,0.00036337,2]
[313984992,1707910245688,-287.66,0.0003638,2]
[313984993,1707910245697,-288.58,0.00036437,2]
[313984994,1707910245706,-2888.87671871,0.00036479,2]
[313984995,1707910245715,-16170.35372519,0.000365,7]
[313984996,1707910245725,-12365.71382664,0.00036608,2]
[313984997,1707910245734,-288.58,0.00036621,2]
[313984998,1707910245743,-1524.48179408,0.00036674,9]
[313985000,1707910245752,-150.0,0.0003669,2]
[313985001,1707910245762,-3185.54865281,0.00036693,9]
[313985002,1707910245771,-1384.36785045,0.000367,2]
[313985003,1707910245780,-288.58,0.00036805,2]
[313985004,1707910245789,-810.14759514,0.00036858,4]
[313985005,1707910245799,-500.0,0.00036986,5]
[313985006,1707910245809,-288.58,0.00036989,2]
[313985007,1707910245819,-100000.0,0.00037,17]
[313985008,1707910245828,-9500.0,0.00037,10]
[313985009,1707910245838,-312.12631658,0.00037,4]
[313985010,1707910245847,-5000.0,0.00037,7]
[313985011,1707910245857,-10367.4907786,0.00037,2]
[313985012,1707910245867,-154.69,0.00037,3]
[313985013,1707910245877,-154.69,0.00037,3]
[313985014,1707910245887,-250.0,0.00037,2]
[313985015,1707910245896,-150.0,0.00037,2]
[313985016,1707910245905,-181.70070823,0.00037,2]
[313985017,1707910245914,-344.64,0.00037075,2]
[313985018,1707910245924,-288.58,0.00037173,2]
[313985019,1707910245933,-150.0,0.00037203,2]
[313985021,1707910245942,-656.04,0.00037247,2]
[313985023,1707910245952,-288.58,0.00037357,2]
[313985025,1707910245961,-151.0,0.00037389,2]
[313985027,1707910245971,-800.0,0.00037476,5]
[313985029,1707910245980,-3185.54865281,0.00037495,10]
[313985031,1707910245991,-200.0,0.000375,30]
[313985033,1707910246000,-500.0,0.00037534,9]
[313985035,1707910246010,-288.58,0.00037541,2]
[313985038,1707910246022,-399.69,0.00037657,2]
[313985039,1707910246031,-666.0,0.00037671,2]
[313985040,1707910246041,-151.0,0.00037674,30]
[313985041,1707910246050,-1625.064593,0.00037674,30]
[313985042,1707910246061,-174.02866579,0.00037674,60]
[313985043,1707910246071,-200.0,0.00037674,30]
[313985044,1707910246080,-151.19629262,0.00037674,2]
[313985045,1707910246090,-568.56,0.000377,2]
[313985046,1707910246099,-200.0,0.000377,30]
[313985047,1707910246108,-213.0,0.000377,7]
[313985048,1707910246118,-288.58,0.00037725,2]
[313985049,1707910246127,-210.5051811,0.00037771,4]
[313985050,1707910246137,-1000.0,0.00037774,2]
[313985051,1707910246146,-538.51570295,0.000378,2]
[313985052,1707910246155,-158.93406877,0.000378,2]
[313985053,1707910246166,-950.0238297,0.000378,2]
[313985054,1707910246176,-1976.5295889,0.000378,2]
[313985055,1707910246187,-4309.7558,0.00037803,2]
[313985056,1707910246196,-399.721755,0.00037808,14]
[313985057,1707910246207,-822.02,0.00037875,2]
[313985058,1707910246216,-418.61,0.00037875,2]
[313985059,1707910246226,-418.61,0.00037875,2]
[313985060,1707910246237,-418.61,0.00037875,2]
[313985061,1707910246248,-418.24,0.00037875,2]
[313985062,1707910246259,-2593.0,0.0003789,2]
[313985063,1707910246269,-1869.0,0.0003789,2]
[313985064,1707910246280,-613.58971178,0.00037899,2]
[313985065,1707910246291,-5000.0,0.000379,3]
[313985066,1707910246301,-200.0,0.000379,30]
[313985067,1707910246311,-200.0,0.000379,12]
[313985068,1707910246321,-150.0,0.000379,8]
[313985069,1707910246330,-330656.44519316,0.000379,2]
[313985103,1707910247025,-119880.15876708,0.000379,2]
[313985104,1707910247037,-65732.1011077,0.000379,2]
[313985105,1707910247049,-44399.7137589,0.000379,2]
[313985106,1707910247062,-35793.16860448,0.000379,2]
[313985107,1707910247073,-35946.0,0.000379,2]
[313985108,1707910247085,-9916.92566768,0.000379,2]
[313985109,1707910247095,-7846.789135,0.000379,5]
[313985110,1707910247104,-1084.43343,0.000379,2]
[313985111,1707910247114,-2814.05318215,0.00037901,4]
[313985112,1707910247123,-7119.15693479,0.00037902,4]
[313985113,1707910247133,-156.07474474,0.00037902,4]
[313985114,1707910247142,-155.0,0.00037903,4]
[313985115,1707910247152,-221.56319813,0.00037903,30]
[313985116,1707910247162,-155.0,0.00037903,4]
[313985117,1707910247174,-2000.0,0.00037903,2]
[313985118,1707910247185,-288.58,0.00037909,2]
[313985119,1707910247195,-630.21580546,0.00037915,2]
[313985120,1707910247206,-543.6321003,0.00037915,2]
[313985121,1707910247216,-20004.6442595,0.00037915,2]
[313985122,1707910247226,-13097.2980099,0.00037915,2]
[313985123,1707910247236,-9448.588076,0.00037915,2]
[313985124,1707910247248,-426.8650982,0.00037915,2]
[313985125,1707910247257,-1000.0,0.00037941,10]
[313985126,1707910247267,-543.6321003,0.00037974,2]
[313985127,1707910247278,-16158.3005274,0.00037974,2]
[313985128,1707910247287,-10590.6825527,0.00037974,2]
[313985129,1707910247298,-200.0,0.00037987,2]
[313985130,1707910247310,-3248.19460353,0.00037997,4]
[313985131,1707910247323,-2632.59600522,0.00037998,4]
[313985132,1707910247333,-43998.48600772,0.00038,18]
[313985133,1707910247362,-1021.2,0.00038,18]
[313985134,1707910247378,-5257.48828448,0.00038,18]
[313985135,1707910247392,-6585.0627425,0.00038,18]
[313985136,1707910247406,-5971.78436974,0.00038,18]
[313985137,1707910247436,-718.16092439,0.00038,18]
[313985138,1707910247448,-1588.94284284,0.00038,18]
[313985139,1707910247460,-692.02618602,0.00038,18]
[313985140,1707910247507,-2995.86511189,0.00038,18]
[313985141,1707910247520,-2993.26018032,0.00038,18]
[313985142,1707910248062,-392.98284367,0.0003315,4]
[313985143,1707910248074,-673.06275528,0.0003315,4]
[313985144,1707910248083,-340.68185856,0.0003315,4]
[313985145,1707910248093,-28177.7233501,0.00038,18]
[313985146,1707910248103,-300.0,0.00038,39]
[313985147,1707910248113,-794.0776613,0.00038,2]
[313985148,1707910248124,-213.82932531,0.00038,4]
[313985149,1707910248135,-500.0,0.00038,4]
[313985150,1707910248150,-200.0,0.00038,11]
[313985151,1707910248169,-500.0,0.00038,2]
[313985152,1707910248188,-3517.77341116,0.00038,14]
[313985153,1707910248206,-1482.22658884,0.00038,14]
[313985154,1707910248216,-200.3044225,0.00038,5]
[313985155,1707910248226,-12631.61,0.00038,2]
[313985156,1707910248239,-863.84251308,0.00038,39]
[313985157,1707910248249,-1503.32602405,0.00038,4]
[313985158,1707910248258,-10000.0,0.00038,3]
[313985159,1707910248268,-150.0,0.00038,20]
[313985160,1707910248279,-177.3,0.00038,2]
[313985161,1707910248289,-500.0,0.00038,2]
[313985162,1707910248298,-2888.87671871,0.00038058,2]
[313985163,1707910248309,-150.0,0.00038068,2]
[313985164,1707910248319,-3401.13647742,0.00038071,2]
[313985165,1707910248915,-1089.0,0.00038071,2]
[313985166,1707910248952,-493.72334705,0.00038071,2]
[313985167,1707910248968,-1083.96802157,0.00038071,2]
[313985168,1707910248980,-300.0,0.00038071,2]
[313985169,1707910248996,-3724.9470641,0.00038071,2]
[313985170,1707910249077,-319.31715993,0.00038071,2]
[313985171,1707910249090,-1351.8,0.00038071,2]
[313985172,1707910249208,-601.82175657,0.00038071,2]
[313985173,1707910249219,-1000.0,0.00038078,10]
[313985174,1707910249230,-1000.0,0.00038078,10]
[313985175,1707910249240,-523.95535789,0.00038082,13]
[313985176,1707910249254,-288.58,0.00038093,2]
[313985177,1707910249264,-200.0,0.000381,30]
[313985178,1707910249274,-151.021414,0.00038148,14]
[313985179,1707910249286,-520.0864881,0.00038159,2]
[313985180,1707910249297,-154.72591103,0.0003819,2]
[313985181,1707910249307,-152.57802689,0.000382,10]
[313985182,1707910249317,-154.69,0.000382,3]
[313985183,1707910249326,-154.69,0.000382,3]
[313985184,1707910249337,-154.69,0.000382,3]
[313985185,1707910249347,-154.69,0.000382,3]
[313985186,1707910249356,-154.26,0.000382,3]
[313985187,1707910249365,-154.26,0.000382,3]
[313985188,1707910249374,-207.0,0.00038206,9]
[313985189,1707910249383,-2000.0,0.00038244,2]
[313985190,1707910249394,-7606.7285814,0.0003826,2]
[313985191,1707910249403,-426.8650982,0.0003826,2]
[313985192,1707910249411,-6215.04632589,0.00038263,2]
[313985193,1707910249423,-1394.84277511,0.00038263,2]
[313985194,1707910249432,-1604.235509,0.00038263,2]
[313985195,1707910249440,-243.056569,0.00038263,2]
[313985196,1707910249449,-289.497665,0.00038263,2]
[313985197,1707910249458,-1604.235509,0.00038263,2]
[313985198,1707910249466,-450.0,0.0003827,2]
[313985199,1707910249475,-288.58,0.00038277,2]
[313985200,1707910249484,-1762.1328922,0.00038282,2]
[313985201,1707910249493,-168.13605804,0.0003829,2]
[313985202,1707910249502,-3185.54865281,0.00038297,11]
[313985203,1707910249511,-200.0,0.000383,30]
[313985204,1707910249520,-344.64,0.00038352,2]
[313985205,1707910249528,-1250.0,0.00038356,2]
[313985206,1707910249538,-250.0,0.0003837,2]
[313985207,1707910249547,-343.96,0.0003839,2]
[313985208,1707910249556,-200.0,0.000384,13]
[313985209,1707910249565,-1103.68876549,0.00038438,2]
[313985210,1707910249577,-404.04653892,0.00038438,2]
[313985211,1707910340565,500.0,0.00025154,2]
[313985212,1707910439089,556.78,0.00025154,2]
[313985213,1707910439318,556.78,0.00026798,2]
[313985214,1707910440829,150.0,0.00025154,2]
[313985215,1707910441548,656.18,0.00025154,2]
[313985216,1707910663608,179.23,0.00025154,2]
[313985217,1707910676025,250.0,0.00025154,2]
[313985218,1707910847885,166.19,0.00024,2]
[313985219,1707910914690,200.0,0.00025154,2]
[313985220,1707910956423,260.42,0.00023236,2]
[313985221,1707910956641,260.42,0.000255,2]
[313985222,1707910959170,200.0,0.00025154,2]
[313985223,1707910979781,3197.42261457,0.0002754,2]
[313985225,1707911093181,1031.02,0.00025154,2]
[313985226,1707911149253,150.0,0.00027479,2]
[313985227,1707911175742,3000.0,0.00025,2]
[313985228,1707911175975,3000.0,0.0002501,2]
[313985229,1707911176293,1685.55738543,0.0002502,2]
[313985230,1707911229111,-402.83821741,0.00025019,2]
[313985231,1707911229133,-1314.44261457,0.0002502,2]
[313985232,1707911229153,-3000.0,0.0002503,2]
[313985233,1707911229173,-3595.39295,0.0002504,2]
[313985234,1707911229193,-228.74225568,0.00027694,2]
[313985235,1707911229213,-2003.91602287,0.00027695,28]
[313985236,1707911229234,-260.42,0.00027764,2]
[313985237,1707911229256,-781.6264,0.00028279,2]
[313985238,1707911229276,-3940.6771,0.00028279,2]
[313985239,1707911229297,-13246.99511604,0.00028378,2]
[313985240,1707911243405,-200.19373561,0.00028378,2]
[313985252,1707911360114,-186.05,0.00025154,2]
[313985280,1707911432161,-529.52895,0.00028179,2]
[313985281,1707911432217,-119.19078943,0.00028179,2]
[313985282,1707911432228,-177.39558616,0.0002818,2]
[313985283,1707911432237,-177.39558616,0.00028277,2]
[313985284,1707911432247,-6015.97454915,0.0002828,2]
[313985285,1707911432256,-402.51224485,0.00028377,2]
[313985286,1707911432266,-300.0,0.00028377,2]
[313985287,1707911432275,-6779.84295121,0.00028378,2]
[313985288,1707911432298,-477.94521477,0.00028378,2]
[313985289,1707911432339,-432.26506192,0.00028378,2]
[313985290,1707911432351,-869.03554055,0.00028378,2]
[313985295,1707911432503,-10307.7259387,0.00028378,2]
[313985328,1707911438219,-57804.58711852,0.00028378,2]
[313985330,1707911438232,-1194.94585007,0.00028378,2]
[313985331,1707911438273,-32092.28529287,0.00028378,2]
[313985332,1707911438286,-997.59127145,0.00028378,2]
[313985333,1707911438359,-1963.371,0.00028378,2]
[313985334,1707911438376,-284.51111494,0.00028378,2]
[313985335,1707911438490,-412.39999824,0.00028378,2]
[313985336,1707911438503,-1007.99999868,0.00028378,2]
[313985337,1707911438534,-15546.04059657,0.00028378,2]
[313985338,1707911438547,-309.42,0.00028378,2]
[313985339,1707911438560,-150.99,0.00028378,2]
[313985340,1707911438570,-3337.43,0.00028379,2]
[313985341,1707911438579,-19910.3921,0.00028379,2]
[313985342,1707911438588,-640.55153823,0.00028478,2]
[313985343,1707911438598,-626.32327301,0.00028478,2]
[313985344,1707911438607,-204.48055045,0.00028478,2]
[313985345,1707911438616,-155.0,0.00028479,2]
[313985346,1707911438626,-1953.19873598,0.0002848,7]
[313985347,1707911438636,-10710.64129544,0.0002848,7]
[313985348,1707911438645,-7828.87498288,0.0002848,7]
[313985349,1707911438657,-7525.57008483,0.0002848,7]
[313985350,1707911438666,-3163.07588236,0.0002848,7]
[313985358,1707911438776,-352.23765355,0.0002848,7]
[313985359,1707911438799,-0.02527426,0.0002848,7]
[313985360,1707911440787,-3312.81052479,0.0002848,7]
[313985361,1707911440796,-868.79,0.00028692,2]
[313985362,1707911440805,-250.0,0.00029231,2]
[313985363,1707911440815,-23900.0,0.00029262,2]
[313985364,1707911440825,-250.0,0.00029269,2]
[313985365,1707911440835,-2000.0,0.00029306,2]
[313985366,1707911440846,-250.0,0.00029306,2]
[313985367,1707911440855,-200.0,0.00029387,2]
[313985368,1707911440865,-151.95,0.000294,2]
[313985369,1707911440875,-164.01,0.00029495,2]
[313985370,1707911440886,-534.6,0.00029627,2]
[313985371,1707911440897,-6015.97454914,0.00029693,2]
[313985372,1707911440906,-176.56149042,0.000298,2]
[313985373,1707911440916,-3045.88772392,0.00029993,2]
[313985374,1707911440925,-364.44524763,0.00029993,2]
[313985375,1707911440934,-595.15,0.00029993,2]
[313985376,1707911440943,-421.58259731,0.00029994,2]
[313985377,1707911440953,-4723.06431297,0.00029995,2]
[313985378,1707911440964,-632.28030098,0.00029995,2]
[313985379,1707911440974,-2319.15296568,0.00029995,2]
[313985380,1707911440984,-3644.9227114,0.00029995,2]
[313985381,1707911440995,-19081.89680977,0.00029999,2]
[313985382,1707911441004,-501.04333133,0.0003,4]
[313985383,1707911441016,-155.0,0.0003,2]
[313985384,1707911441025,-73392.57907739,0.0003,4]
[313985385,1707911441036,-500.0,0.0003,2]
[313985386,1707911441046,-9696.33084406,0.0003,2]
[313985387,1707911441210,-3000.0,0.0003,2]
[313985388,1707911441219,-3000.0,0.0003001,2]
[313985389,1707911441229,-5477.23002,0.0003002,2]
[313985390,1707911441238,-260.42,0.00030028,2]
[313985391,1707911441247,-157.66,0.00030073,2]
[313985392,1707911441256,-151.95,0.00030166,2]
[313985393,1707911441265,-2080.349,0.00030339,2]
[313985394,1707911441275,-17795.51615268,0.00030605,4]
[313985395,1707911441284,-1420.14732941,0.00030605,3]
[313985396,1707911441294,-713.40710022,0.00030605,3]
[313985397,1707911441303,-342.33782485,0.00030605,3]
[313985398,1707911441312,-433.80408995,0.00030605,3]
[313985399,1707911441321,-177.03910351,0.00030605,3]
[313985400,1707911441330,-160.1614123,0.00030605,3]
[313985401,1707911441341,-420.0,0.00030635,2]
[313985402,1707911441350,-151.95,0.00030932,2]
[313985403,1707911441359,-6015.97454914,0.00031106,2]
[313985404,1707911441368,-534.6,0.00031271,2]
[313985405,1707911441378,-164.97,0.00032033,2]
[313985406,1707911441387,-207.0,0.00032093,2]
[313985407,1707911441396,-868.79,0.00032279,2]
[313985408,1707911441405,-260.42,0.00032292,2]
[313985409,1707911441414,-157.7,0.00032326,2]
[313985410,1707911441424,-156.70524064,0.00032378,7]
[313985411,1707911441433,-180.0,0.00032413,2]
[313985412,1707911441442,-6015.97454914,0.00032518,2]
[313985413,1707911441452,-150.0,0.00032877,2]
[313985414,1707911441461,-152.6,0.00032877,2]
[313985415,1707911441471,-534.6,0.00032915,2]
[313985416,1707911441481,-767.80874563,0.00033,4]
[313985417,1707911441491,-1171.16501272,0.00033,2]
[313985418,1707911441501,-183.0,0.00033073,3]
[313985419,1707911441510,-261.48482609,0.00033148,4]
[313985420,1707911441521,-216.14687096,0.00033149,4]
[313985421,1707911441530,-230.61736354,0.00033149,2]
[313985422,1707911441539,-266.77665922,0.0003315,4]
[313985423,1707911441550,-2000.0,0.000334,2]
[313985424,1707911441562,-150.0,0.00033742,2]
[313985425,1707911441571,-6015.97454914,0.00033931,2]
[313985426,1707911441580,-2104.25638016,0.00034177,4]
[313985427,1707911441590,-164.01,0.00034411,2]
[313985428,1707911441599,-231.44855723,0.00034517,2]
[313985429,1707911441609,-484.258696,0.0003452,2]
[313985430,1707911441618,-3487.885265,0.0003452,2]
[313985431,1707911441628,-172.36,0.00034521,2]
[313985432,1707911441637,-260.42,0.00034556,2]
[313985433,1707911441647,-534.6,0.00034559,2]
[313985434,1707911441657,-360.22491493,0.00034594,2]
[313985435,1707911441665,-150.0,0.00034607,2]
[313985436,1707911441674,-726.388044,0.00034794,2]
[313985437,1707911441683,-190.21216099,0.00034794,2]
[313985438,1707911441696,-5041.61573601,0.00034794,2]
[313985439,1707911441705,-2675.25285817,0.000349,2]
[313985440,1707911441714,-968.517393,0.00034931,2]
[313985441,1707911441724,-6975.77053,0.00034931,2]
[313985442,1707911441733,-6453.293923,0.00035,15]
[313985444,1707911441978,-79287.64292287,0.00035,15]
[313985445,1707911441989,-381.19675957,0.00035,15]
[313985446,1707911442002,-943.46596336,0.00035,15]
[313985447,1707911442013,-1034.355,0.00035,15]
[313985448,1707911442024,-264.4956,0.00035,15]
[313985449,1707911442145,-3723.81727995,0.00035,15]
[313985450,1707911442157,-653.4606487,0.00035,15]
[313985451,1707911442168,-774.1338722,0.00035,15]
[313985452,1707911442188,-579.92072339,0.00035,15]
[313985453,1707911442320,-5904.21730696,0.00035,15]
[313985454,1707911442330,-13823.84200531,0.00035,4]
[313985455,1707911442342,-2102.7673685,0.00035,4]
[313985456,1707911442353,-1176.69046004,0.00035,4]
[313985457,1707911442369,-3291.39065368,0.00035,4]
[313985458,1707911442380,-725.53231417,0.00035,4]
[313985459,1707911442391,-468.67992952,0.00035,4]
[313985460,1707911442403,-1003.91591184,0.00035,4]
[313985461,1707911442415,-1404.82155403,0.00035,4]
[313985462,1707911442430,-23781.96793144,0.00035,4]
[313985463,1707911442440,-228.65418055,0.00035,7]
[313985464,1707911442449,-436.01862455,0.00035,4]
[313985465,1707911442458,-155.0,0.00035,2]
[313985466,1707911442467,-1210.646741,0.00035068,2]
[313985467,1707911442476,-8719.713163,0.00035068,2]
[313985468,1707911442485,-207.0,0.00035194,8]
[313985469,1707911442494,-1000.0,0.000353,2]
[313985470,1707911442503,-1694.905437,0.00035342,2]
[313985471,1707911442512,-11109.94340813,0.00035342,2]
[313985472,1707911442537,-1097.65501987,0.00035342,2]
[313985473,1707911442547,-6015.97454914,0.00035344,2]
[313985474,1707911442557,-150.0,0.00035472,2]
[313985475,1707911442568,-30111.72117475,0.00035621,3]
[313985476,1707911442584,-906.25999723,0.00035621,3]
[313985477,1707911442597,-14383.86682473,0.00035621,3]
[313985478,1707911442608,-12598.15200329,0.00035621,3]
[313985479,1707911442617,-155.25892357,0.000357,4]
[313985480,1707911442626,-836.1203,0.000357,4]
[313985481,1707911442635,-212.78705523,0.000357,4]
[313985482,1707911442644,-868.79,0.00035865,2]
[313985483,1707911442653,-205.04048404,0.0003588,10]
[313985484,1707911442662,-1000.0,0.0003589,120]
[313985485,1707911442672,-4515.41905797,0.00035977,5]
[313985486,1707911442683,-599.87217901,0.00035977,5]
[313985487,1707911442693,-777.69063454,0.00035978,4]
[313985488,1707911442705,-4720.6272777,0.00035978,4]
[313985489,1707911442717,-1104.43424814,0.00035978,4]
[313985490,1707911442728,-854.44252208,0.00035978,4]
[313985491,1707911442740,-590.29,0.00035978,4]
[313985492,1707911442752,-250.5,0.00035978,4]
[313985509,1707911443197,-864.21692083,0.00035978,4]
[313985511,1707911443209,-709.17,0.00035978,4]
[313985515,1707911443254,-23061.43133937,0.00035978,4]
[313985517,1707911443266,-89892.49205433,0.00035978,4]
[313985519,1707911443275,-5000.0,0.0003598,2]
[313985520,1707911443284,-258.62,0.00035996,30]
[313985521,1707911443293,-100000.0,0.00036,16]
[313985522,1707911443303,-159.0,0.00036,2]
[313985523,1707911443312,-517.06,0.00036133,30]
[313985524,1707911443321,-534.6,0.00036203,2]
[313985525,1707911443331,-6623.85385375,0.0003631,5]
[313985526,1707911443341,-150.0,0.00036337,2]
[313985527,1707911443350,-656.18,0.00036387,2]
[313985528,1707911443360,-1031.02,0.00036387,2]
[313985529,1707911443506,-2675.2528581,0.00036479,2]
[313985530,1707911443516,-151.0,0.00036488,4]
[313985531,1707911443526,-1422.8496744,0.00036695,9]
[313985532,1707911443537,-151.021412,0.00036748,12]
[313985533,1707911443545,-6015.97454914,0.00036757,2]
[313985534,1707911443555,-260.42,0.0003682,2]
[313985535,1707911443565,-151.22241652,0.00036896,2]
[313985536,1707911443576,-2106.05168325,0.00036896,9]
[313985537,1707911443585,-531.07266181,0.00036996,4]
[313985538,1707911443596,-142969.11598032,0.00036996,4]
[313985539,1707911443605,-204.05359737,0.00036996,4]
[313985540,1707911443614,-269.00350648,0.00036996,4]
[313985541,1707911443624,-533.76058137,0.00036996,4]
[313985542,1707911443634,-193.04743947,0.00036998,4]
[313985543,1707911443643,-193.52727885,0.00036999,15]
[313985544,1707911443652,-100000.0,0.00037,17]
[313985545,1707911443662,-3734.40094891,0.00037,7]
[313985546,1707911443672,-312.12631658,0.00037,4]
[313985547,1707911443681,-151.021414,0.00037148,14]
[313985548,1707911443690,-2106.05168316,0.00037169,10]
[313985549,1707911443699,-150.0,0.00037203,2]
[313985550,1707911443708,-151.0,0.00037233,2]
[313985551,1707911443718,-3612.75489053,0.00037331,10]
[313985552,1707911443727,-3612.75489053,0.00037339,10]
[313985553,1707911443737,-3612.75489053,0.00037341,10]
[313985554,1707911443747,-3612.75489053,0.00037342,10]
[313985555,1707911443757,-3612.75489053,0.00037346,10]
[313985556,1707911443766,-3612.75489053,0.00037364,10]
[313985557,1707911443776,-233.570803,0.00037372,5]
[313985558,1707911443786,-3612.75489053,0.00037389,10]
[313985559,1707911443795,-159.0,0.00037397,2]
[313985560,1707911443806,-1000.0,0.000374,60]
[313985561,1707911443815,-2106.05168316,0.00037442,10]
[313985562,1707911443825,-151.021414,0.00037448,14]
[313985563,1707911443834,-666.0,0.00037499,2]
[313985564,1707911443843,-100193.40857642,0.000375,6]
[313985565,1707911443853,-200.0,0.000375,30]
[313985566,1707911443862,-6508.41418522,0.00037684,10]
[313985567,1707911443872,-200.0,0.00037694,3]
[313985568,1707911443881,-150.0,0.00037695,30]
[313985569,1707911443891,-174.02866579,0.00037695,60]
[313985570,1707911443901,-200.0,0.000377,30]
[313985571,1707911443910,-2106.05168316,0.00037715,11]
[313985572,1707911443920,-151.021414,0.00037748,14]
[313985573,1707911443932,-359.74958,0.00037808,14]
[313985574,1707911443942,-534.6,0.00037846,2]
[313985575,1707911443954,-6508.41418522,0.0003786,10]
[313985576,1707911443963,-800.0,0.00037864,5]
[313985577,1707911443973,-6508.41418522,0.0003787,10]
[313985578,1707911443984,-20379.09674721,0.0003788,2]
[313985579,1707911443995,-26033.6567409,0.0003788,10]
[313985580,1707911444005,-6508.41418522,0.0003789,10]
[313985581,1707911444016,-52067.3134818,0.0003789,10]
[313985582,1707911444025,-1995.0,0.0003789,2]
[313985583,1707911444034,-626.0,0.0003789,2]
[313985584,1707911444044,-5000.0,0.000379,3]
[313985585,1707911444055,-200.0,0.000379,30]
[313985586,1707911444064,-106937.691268,0.000379,2]
[313985587,1707911444074,-204.24735292,0.000379,2]
[313985588,1707911444084,-621.34164074,0.000379,2]
[313985589,1707911444094,-473.3904156,0.000379,2]
[313985590,1707911444103,-270.95691482,0.000379,2]
[313985591,1707911444112,-26033.6567409,0.00037969,10]
[313985592,1707911444122,-106937.691268,0.00037969,2]
[313985593,1707911444132,-52067.3134818,0.0003797,10]
[313985594,1707911444142,-26033.6567409,0.0003798,10]
[313985595,1707911444153,-13016.8283704,0.0003798,10]
[313985596,1707911444163,-6508.41418522,0.00037988,10]
[313985597,1707911444173,-2106.05168316,0.00037988,11]
[313985598,1707911444183,-19525.2425557,0.0003799,10]
[313985599,1707911444192,-106937.691268,0.0003799,2]